[Event "Titled Tuesday Blitz May 2 Late 2023"]
[White "Kujawski, Adam"]
[Black "Jaskolka, Tomasz"]
[WhiteFideId "1100920"]
[BlackFideId "1170791"]
[WhiteElo "2054"]
[BlackElo "2155"]
[Result "1-0"]
[Round "05"]
[TimeControl "180+2"]
[Date "2023.05.02"]
[WhiteClock "0:00:17"]
[BlackClock "0:00:18"]

1. e4 {[%clk 0:02:53]}  c5 {[%clk 0:02:41]} 2. Nf3 {[%clk 0:02:53]}  e6 {[%clk 0:02:39]} 3. d4 {[%clk 0:02:53]}  cxd4 {[%clk 0:02:40]} 4. Nxd4 {[%clk 0:02:54]}  Nc6 {[%clk 0:02:40]} 5. Nc3 {[%clk 0:02:54]}  Qc7 {[%clk 0:02:39]} 6. Ndb5 {[%clk 0:02:54]}  Qb8 {[%clk 0:02:38]} 7. Be3 {[%clk 0:02:54]}  a6 {[%clk 0:02:32]} 8. Nd4 {[%clk 0:02:55]}  Qc7 {[%clk 0:02:32]} 9. f4 {[%clk 0:02:54]}  Bb4 {[%clk 0:02:21]} 10. Nxc6 {[%clk 0:02:53]}  Qxc6 {[%clk 0:02:21]} 11. Qd4 {[%clk 0:02:51]}  Bxc3+ {[%clk 0:02:19]} 12. bxc3 {[%clk 0:02:51]}  Nf6 {[%clk 0:02:19]} 13. Bd3 {[%clk 0:02:45]}  d5 {[%clk 0:02:16]} 14. e5 {[%clk 0:02:21]}  Nd7 {[%clk 0:02:08]} 15. O-O {[%clk 0:01:46]}  g6 {[%clk 0:02:05]} 16. g4 {[%clk 0:01:40]}  h5 {[%clk 0:02:03]} 17. f5 {[%clk 0:01:37]}  Nf8 {[%clk 0:01:58]} 18. fxg6 {[%clk 0:01:31]}  Nxg6 {[%clk 0:01:58]} 19. Rxf7 {[%clk 0:00:51]}  Kxf7 {[%clk 0:01:42]} 20. Rf1+ {[%clk 0:00:51]}  Kg7 {[%clk 0:01:36]} 21. Rf6 {[%clk 0:00:30]}  Qe8 {[%clk 0:00:29]} 22. Rxg6+ {[%clk 0:00:21]}  Qxg6 {[%clk 0:00:30]} 23. Bxg6 {[%clk 0:00:21]}  Kxg6 {[%clk 0:00:31]} 24. Qf4 {[%clk 0:00:20]}  hxg4 {[%clk 0:00:16]} 25. Qg5+ {[%clk 0:00:20]}  Kh7 {[%clk 0:00:16]} 26. Qh6+ {[%clk 0:00:19]}  Kg8 {[%clk 0:00:17]} 27. Qg6+ {[%clk 0:00:19]}  Kf8 {[%clk 0:00:18]} 28. Bh6+ {[%clk 0:00:19]}  Rxh6 {[%clk 0:00:17]} 29. Qxh6+ {[%clk 0:00:20]}  Ke7 {[%clk 0:00:18]} 30. Qg7+ {[%clk 0:00:20]}  Kd8 {[%clk 0:00:18]} 31. Qf8+ {[%clk 0:00:17]}  Kc7 {[%clk 0:00:18]} 32. Qd6# {[%clk 0:00:17]} 1-0


[Site "https://www.chess.com"]

[Event "Titled Tuesday Blitz May 2 Late 2023"]
[White "Carrasco Miranda, Andres"]
[Black "Martic, Ivan"]
[WhiteFideId "3405990"]
[BlackFideId "929301"]
[WhiteElo "2183"]
[BlackElo "2360"]
[Result "0-1"]
[Round "05"]
[TimeControl "180+2"]
[Date "2023.05.02"]
[WhiteClock "0:00:24"]
[BlackClock "0:00:50"]

1. d4 {[%clk 0:02:11]}  d5 {[%clk 0:02:58]} 2. c4 {[%clk 0:02:10]}  Nc6 {[%clk 0:02:58]} 3. Nc3 {[%clk 0:02:10]}  Nf6 {[%clk 0:02:55]} 4. Nf3 {[%clk 0:02:09]}  dxc4 {[%clk 0:02:55]} 5. d5 {[%clk 0:02:05]}  Na5 {[%clk 0:02:40]} 6. e4 {[%clk 0:02:02]}  c6 {[%clk 0:02:36]} 7. Bg5 {[%clk 0:02:01]}  h6 {[%clk 0:02:19]} 8. Bxf6 {[%clk 0:01:59]}  exf6 {[%clk 0:02:20]} 9. Qa4 {[%clk 0:01:49]}  b5 {[%clk 0:02:16]} 10. Qc2 {[%clk 0:01:44]}  a6 {[%clk 0:02:07]} 11. Rd1 {[%clk 0:01:43]}  Bb4 {[%clk 0:02:03]} 12. a3 {[%clk 0:01:40]}  Bxc3+ {[%clk 0:02:01]} 13. Qxc3 {[%clk 0:01:41]}  cxd5 {[%clk 0:01:57]} 14. Rxd5 {[%clk 0:01:40]}  Qc7 {[%clk 0:01:57]} 15. Be2 {[%clk 0:01:28]}  Bb7 {[%clk 0:01:53]} 16. Rd4 {[%clk 0:01:19]}  Nb3 {[%clk 0:01:41]} 17. Bxc4 {[%clk 0:01:02]}  bxc4 {[%clk 0:01:36]} 18. Rxc4 {[%clk 0:01:02]}  Qa5 {[%clk 0:01:31]} 19. Rb4 {[%clk 0:00:55]}  Nc5 {[%clk 0:01:29]} 20. O-O {[%clk 0:00:54]}  O-O {[%clk 0:01:20]} 21. Nh4 {[%clk 0:00:42]}  Nxe4 {[%clk 0:01:15]} 22. Qh3 {[%clk 0:00:30]}  Ng5 {[%clk 0:01:08]} 23. Qg3 {[%clk 0:00:30]}  Bc8 {[%clk 0:00:56]} 24. f4 {[%clk 0:00:28]}  Qc5+ {[%clk 0:00:55]} 25. Kh1 {[%clk 0:00:27]}  Ne6 {[%clk 0:00:52]} 26. Nf5 {[%clk 0:00:24]}  Qxf5 {[%clk 0:00:50]} 0-1


[Site "https://www.chess.com"]

[Event "Titled Tuesday Blitz May 2 Late 2023"]
[White "De Souza, Cristiano Gomes"]
[Black "Kovalevsky, Stanislav"]
[WhiteFideId "2151758"]
[BlackFideId "13508598"]
[WhiteElo "2068"]
[BlackElo "2174"]
[Result "0-1"]
[Round "05"]
[TimeControl "180+2"]
[Date "2023.05.02"]
[WhiteClock "0:00:19"]
[BlackClock "0:00:10"]

1. d4 {[%clk 0:03:00]}  d5 {[%clk 0:03:00]} 2. c4 {[%clk 0:03:00]}  c6 {[%clk 0:03:00]} 3. Nf3 {[%clk 0:03:00]}  Nf6 {[%clk 0:03:00]} 4. Nc3 {[%clk 0:03:00]}  a6 {[%clk 0:02:58]} 5. c5 {[%clk 0:02:55]}  b6 {[%clk 0:02:54]} 6. cxb6 {[%clk 0:02:54]}  Qxb6 {[%clk 0:02:53]} 7. Qb3 {[%clk 0:02:52]}  Qxb3 {[%clk 0:02:35]} 8. axb3 {[%clk 0:02:51]}  e6 {[%clk 0:02:34]} 9. Ne5 {[%clk 0:02:48]}  c5 {[%clk 0:02:30]} 10. e3 {[%clk 0:02:45]}  cxd4 {[%clk 0:02:26]} 11. exd4 {[%clk 0:02:45]}  Bd6 {[%clk 0:02:27]} 12. Na4 {[%clk 0:02:41]}  Nbd7 {[%clk 0:02:19]} 13. Nxd7 {[%clk 0:02:38]}  Nxd7 {[%clk 0:02:08]} 14. Bd2 {[%clk 0:02:34]}  Bb7 {[%clk 0:02:06]} 15. b4 {[%clk 0:02:34]}  Ke7 {[%clk 0:02:04]} 16. Nc5 {[%clk 0:02:34]}  Bc6 {[%clk 0:01:49]} 17. Bd3 {[%clk 0:02:12]}  Bb5 {[%clk 0:01:37]} 18. Ke2 {[%clk 0:02:09]}  Rhb8 {[%clk 0:01:27]} 19. Ra3 {[%clk 0:02:02]}  Bxc5 {[%clk 0:01:20]} 20. dxc5 {[%clk 0:01:50]}  Ne5 {[%clk 0:01:19]} 21. Bxb5 {[%clk 0:01:47]}  axb5 {[%clk 0:01:17]} 22. Rha1 {[%clk 0:01:44]}  Rxa3 {[%clk 0:01:16]} 23. Rxa3 {[%clk 0:01:43]}  Rb7 {[%clk 0:01:13]} 24. Bc3 {[%clk 0:01:40]}  Nc6 {[%clk 0:00:54]} 25. Ra8 {[%clk 0:01:26]}  d4 {[%clk 0:00:54]} 26. Bd2 {[%clk 0:01:26]}  e5 {[%clk 0:00:50]} 27. f3 {[%clk 0:01:22]}  h5 {[%clk 0:00:48]} 28. Kd3 {[%clk 0:01:12]}  Ke6 {[%clk 0:00:41]} 29. Rc8 {[%clk 0:01:10]}  Kd5 {[%clk 0:00:39]} 30. b3 {[%clk 0:00:58]}  f5 {[%clk 0:00:37]} 31. Re8 {[%clk 0:00:57]}  e4+ {[%clk 0:00:34]} 32. fxe4+ {[%clk 0:00:56]}  fxe4+ {[%clk 0:00:35]} 33. Ke2 {[%clk 0:00:47]}  e3 {[%clk 0:00:31]} 34. Be1 {[%clk 0:00:46]}  Ra7 {[%clk 0:00:21]} 35. Rg8 {[%clk 0:00:35]}  Ra2+ {[%clk 0:00:19]} 36. Kf3 {[%clk 0:00:32]}  Ne5+ {[%clk 0:00:18]} 37. Kg3 {[%clk 0:00:30]}  Re2 {[%clk 0:00:18]} 38. Rxg7 {[%clk 0:00:25]}  Rxe1 {[%clk 0:00:18]} 39. Rg5 {[%clk 0:00:25]}  d3 {[%clk 0:00:18]} 40. Kf4 {[%clk 0:00:25]}  Rf1+ {[%clk 0:00:14]} 41. Kxe3 {[%clk 0:00:24]}  Re1+ {[%clk 0:00:11]} 42. Kf4 {[%clk 0:00:21]}  d2 {[%clk 0:00:11]} 43. Rg8 {[%clk 0:00:21]}  Nd3+ {[%clk 0:00:10]} 44. Kg5 {[%clk 0:00:19]}  d1=Q {[%clk 0:00:10]} 45. Rd8+ {[%clk 0:00:19]}  Ke4 {[%clk 0:00:10]} 46. Re8+ {[%clk 0:00:19]}  Ne5 {[%clk 0:00:10]} 47. Kf6 {[%clk 0:00:19]}  Rf1+ {[%clk 0:00:09]} 48. Ke6 {[%clk 0:00:19]}  Qd7# {[%clk 0:00:10]} 0-1


[Site "https://www.chess.com"]

[Event "Titled Tuesday Blitz May 2 Late 2023"]
[White "Rodriguez Santiago, Jaime"]
[Black "Przybylski, Wojciech"]
[WhiteFideId "3100898"]
[BlackFideId "1117599"]
[WhiteElo "2025"]
[BlackElo "2222"]
[Result "0-1"]
[Round "05"]
[TimeControl "180+2"]
[Date "2023.05.02"]
[WhiteClock "0:00:21"]
[BlackClock "0:00:31"]

1. c4 {[%clk 0:03:00]}  Nf6 {[%clk 0:02:56]} 2. Nc3 {[%clk 0:03:00]}  c5 {[%clk 0:02:52]} 3. e4 {[%clk 0:02:58]}  e5 {[%clk 0:02:50]} 4. g3 {[%clk 0:02:56]}  h5 {[%clk 0:02:49]} 5. h3 {[%clk 0:02:55]}  h4 {[%clk 0:02:48]} 6. g4 {[%clk 0:02:55]}  g5 {[%clk 0:02:47]} 7. Bg2 {[%clk 0:02:52]}  Nc6 {[%clk 0:02:46]} 8. d3 {[%clk 0:02:51]}  Nh7 {[%clk 0:02:41]} 9. Nf3 {[%clk 0:02:48]}  Be7 {[%clk 0:02:41]} 10. Nd5 {[%clk 0:02:47]}  f6 {[%clk 0:02:40]} 11. Be3 {[%clk 0:02:45]}  d6 {[%clk 0:02:35]} 12. O-O {[%clk 0:02:35]}  Nf8 {[%clk 0:02:32]} 13. a3 {[%clk 0:02:28]}  Bd7 {[%clk 0:02:29]} 14. b4 {[%clk 0:02:26]}  b6 {[%clk 0:02:29]} 15. Rb1 {[%clk 0:02:22]}  Ne6 {[%clk 0:02:27]} 16. b5 {[%clk 0:02:06]}  Ncd4 {[%clk 0:02:25]} 17. Nxd4 {[%clk 0:02:06]}  cxd4 {[%clk 0:02:25]} 18. Bd2 {[%clk 0:02:04]}  Nf4 {[%clk 0:02:19]} 19. Bxf4 {[%clk 0:02:02]}  gxf4 {[%clk 0:02:19]} 20. f3 {[%clk 0:01:56]}  Kf7 {[%clk 0:02:13]} 21. a4 {[%clk 0:01:55]}  Qc8 {[%clk 0:02:08]} 22. Qd2 {[%clk 0:01:53]}  Bd8 {[%clk 0:02:04]} 23. Rf2 {[%clk 0:01:48]}  Be6 {[%clk 0:02:04]} 24. Nb4 {[%clk 0:01:46]}  Bd7 {[%clk 0:02:03]} 25. Qa2 {[%clk 0:01:42]}  Kg6 {[%clk 0:02:03]} 26. Rc2 {[%clk 0:01:33]}  Qc5 {[%clk 0:01:53]} 27. Nd5 {[%clk 0:01:28]}  Kg5 {[%clk 0:01:51]} 28. Rbc1 {[%clk 0:01:28]}  Bc8 {[%clk 0:01:46]} 29. Qb3 {[%clk 0:01:26]}  Bb7 {[%clk 0:01:46]} 30. Nb4 {[%clk 0:01:26]}  Rc8 {[%clk 0:01:39]} 31. Ra2 {[%clk 0:01:25]}  Qc7 {[%clk 0:01:35]} 32. Rca1 {[%clk 0:01:25]}  Qf7 {[%clk 0:01:34]} 33. a5 {[%clk 0:01:24]}  bxa5 {[%clk 0:01:32]} 34. Nd5 {[%clk 0:01:17]}  Bxd5 {[%clk 0:01:26]} 35. exd5 {[%clk 0:01:13]}  Bb6 {[%clk 0:01:25]} 36. Qd1 {[%clk 0:01:07]}  Qc7 {[%clk 0:01:19]} 37. Qe2 {[%clk 0:01:06]}  f5 {[%clk 0:01:15]} 38. gxf5 {[%clk 0:01:03]}  Kxf5 {[%clk 0:01:15]} 39. Qe4+ {[%clk 0:01:03]}  Kf6 {[%clk 0:01:15]} 40. Kh2 {[%clk 0:01:02]}  Rcg8 {[%clk 0:01:13]} 41. Bh1 {[%clk 0:01:01]}  Rg3 {[%clk 0:01:12]} 42. Rg2 {[%clk 0:01:01]}  Qd7 {[%clk 0:01:08]} 43. Kg1 {[%clk 0:00:46]}  Qxh3 {[%clk 0:01:05]} 44. Ra2 {[%clk 0:00:46]}  Qd7 {[%clk 0:00:57]} 45. Kf1 {[%clk 0:00:44]}  Qf5 {[%clk 0:00:53]} 46. Rh2 {[%clk 0:00:30]}  h3 {[%clk 0:00:51]} 47. Qe2 {[%clk 0:00:26]}  Rhg8 {[%clk 0:00:48]} 48. Ke1 {[%clk 0:00:25]}  Rg1+ {[%clk 0:00:44]} 49. Kd2 {[%clk 0:00:25]}  R8g3 {[%clk 0:00:44]} 50. Kc2 {[%clk 0:00:22]}  Rxh1 {[%clk 0:00:34]} 51. Rxh1 {[%clk 0:00:20]}  Rg2 {[%clk 0:00:35]} 52. Kb3 {[%clk 0:00:21]}  Rxe2 {[%clk 0:00:31]} 0-1


[Site "https://www.chess.com"]

[Event "Titled Tuesday Blitz May 2 Late 2023"]
[White "Rose, Felix"]
[Black "Suvorov, Luca"]
[WhiteFideId "5105722"]
[BlackFideId "12977071"]
[WhiteElo "2039"]
[BlackElo "2202"]
[Result "0-1"]
[Round "05"]
[TimeControl "180+2"]
[Date "2023.05.02"]
[WhiteClock "0:00:07"]
[BlackClock "0:00:22"]

1. e4 {[%clk 0:03:00]}  c6 {[%clk 0:02:57]} 2. d4 {[%clk 0:03:00]}  d5 {[%clk 0:02:56]} 3. e5 {[%clk 0:03:00]}  Bf5 {[%clk 0:02:55]} 4. h4 {[%clk 0:02:58]}  h5 {[%clk 0:02:55]} 5. Bd3 {[%clk 0:02:58]}  Bxd3 {[%clk 0:02:54]} 6. Qxd3 {[%clk 0:02:59]}  e6 {[%clk 0:02:54]} 7. Bg5 {[%clk 0:02:59]}  Qa5+ {[%clk 0:02:53]} 8. Nd2 {[%clk 0:02:58]}  Qa6 {[%clk 0:02:52]} 9. c4 {[%clk 0:02:58]}  Bb4 {[%clk 0:02:48]} 10. b3 {[%clk 0:02:57]}  Ne7 {[%clk 0:02:44]} 11. Nf3 {[%clk 0:02:57]}  Nf5 {[%clk 0:02:44]} 12. O-O {[%clk 0:02:51]}  Nd7 {[%clk 0:02:34]} 13. Qc2 {[%clk 0:02:50]}  Bxd2 {[%clk 0:02:26]} 14. Bxd2 {[%clk 0:02:43]}  Qb6 {[%clk 0:02:17]} 15. cxd5 {[%clk 0:02:21]}  cxd5 {[%clk 0:02:15]} 16. Be3 {[%clk 0:02:19]}  O-O {[%clk 0:02:09]} 17. Rac1 {[%clk 0:02:15]}  Rfd8 {[%clk 0:01:59]} 18. Bg5 {[%clk 0:01:25]}  Re8 {[%clk 0:01:46]} 19. Qc7 {[%clk 0:01:23]}  Nf8 {[%clk 0:01:36]} 20. Be3 {[%clk 0:01:09]}  Qa6 {[%clk 0:01:27]} 21. Ng5 {[%clk 0:00:57]}  Re7 {[%clk 0:01:26]} 22. Qc2 {[%clk 0:00:56]}  Nxh4 {[%clk 0:01:17]} 23. g3 {[%clk 0:00:21]}  Nf5 {[%clk 0:01:16]} 24. Kg2 {[%clk 0:00:22]}  g6 {[%clk 0:01:08]} 25. Rh1 {[%clk 0:00:20]}  Ree8 {[%clk 0:00:49]} 26. Kf3 {[%clk 0:00:14]}  Rac8 {[%clk 0:00:36]} 27. Qxc8 {[%clk 0:00:09]}  Rxc8 {[%clk 0:00:37]} 28. Rxc8 {[%clk 0:00:10]}  Qd3 {[%clk 0:00:38]} 29. Rc7 {[%clk 0:00:09]}  Nxd4+ {[%clk 0:00:36]} 30. Kg2 {[%clk 0:00:09]}  Nf5 {[%clk 0:00:36]} 31. Re1 {[%clk 0:00:08]}  Nh7 {[%clk 0:00:30]} 32. Nxh7 {[%clk 0:00:06]}  Kxh7 {[%clk 0:00:29]} 33. Rxf7+ {[%clk 0:00:07]}  Kg8 {[%clk 0:00:29]} 34. Rxb7 {[%clk 0:00:08]}  Qe4+ {[%clk 0:00:29]} 35. Kg1 {[%clk 0:00:07]}  d4 {[%clk 0:00:24]} 36. Rb8+ {[%clk 0:00:08]}  Kf7 {[%clk 0:00:23]} 37. Bd2 {[%clk 0:00:09]}  Qf3 {[%clk 0:00:19]} 38. Rc1 {[%clk 0:00:09]}  g5 {[%clk 0:00:16]} 39. Bxg5 {[%clk 0:00:08]}  Kg6 {[%clk 0:00:16]} 40. Bf6 {[%clk 0:00:08]}  Nxg3 {[%clk 0:00:16]} 41. Rg8+ {[%clk 0:00:08]}  Kf5 {[%clk 0:00:17]} 42. Rxg3 {[%clk 0:00:09]}  Qe2 {[%clk 0:00:17]} 43. Kg2 {[%clk 0:00:08]}  h4 {[%clk 0:00:17]} 44. Rf3+ {[%clk 0:00:08]}  Ke4 {[%clk 0:00:18]} 45. Rh3 {[%clk 0:00:06]}  Qg4+ {[%clk 0:00:17]} 46. Kh2 {[%clk 0:00:06]}  Qf4+ {[%clk 0:00:18]} 47. Kh1 {[%clk 0:00:05]}  Qxc1+ {[%clk 0:00:18]} 48. Kh2 {[%clk 0:00:05]}  Qf4+ {[%clk 0:00:18]} 49. Kg2 {[%clk 0:00:05]}  Qg4+ {[%clk 0:00:19]} 50. Kh2 {[%clk 0:00:05]}  d3 {[%clk 0:00:19]} 51. Rxh4 {[%clk 0:00:06]}  Qxh4+ {[%clk 0:00:19]} 52. Bxh4 {[%clk 0:00:07]}  d2 {[%clk 0:00:20]} 53. f4 {[%clk 0:00:07]}  d1=Q {[%clk 0:00:20]} 54. Kh3 {[%clk 0:00:05]}  Qf3+ {[%clk 0:00:20]} 55. Bg3 {[%clk 0:00:06]}  Kf5 {[%clk 0:00:20]} 56. Kh2 {[%clk 0:00:06]}  Kg4 {[%clk 0:00:20]} 57. Be1 {[%clk 0:00:06]}  Qe2+ {[%clk 0:00:21]} 58. Bf2 {[%clk 0:00:05]}  Qxf2+ {[%clk 0:00:21]} 59. Kh1 {[%clk 0:00:06]}  Kg3 {[%clk 0:00:22]} 60. f5 {[%clk 0:00:07]}  Qg2# {[%clk 0:00:22]} 0-1


[Site "https://www.chess.com"]

[Event "Titled Tuesday Blitz May 2 Late 2023"]
[White "Van den Dikkenberg, Erik"]
[Black "Kubatko, Ivan"]
[WhiteFideId "1005880"]
[BlackFideId "24111473"]
[WhiteElo "2118"]
[BlackElo "2285"]
[Result "0-1"]
[Round "05"]
[TimeControl "180+2"]
[Date "2023.05.02"]
[WhiteClock "0:00:08"]
[BlackClock "0:00:15"]

1. e4 {[%clk 0:03:00]}  d5 {[%clk 0:03:00]} 2. exd5 {[%clk 0:03:00]}  Qxd5 {[%clk 0:03:01]} 3. Nc3 {[%clk 0:03:00]}  Qa5 {[%clk 0:03:00]} 4. b4 {[%clk 0:03:00]}  Qxb4 {[%clk 0:03:00]} 5. Rb1 {[%clk 0:03:00]}  Qd6 {[%clk 0:03:00]} 6. Nf3 {[%clk 0:03:00]}  Nf6 {[%clk 0:03:00]} 7. d4 {[%clk 0:02:59]}  a6 {[%clk 0:03:00]} 8. Bc4 {[%clk 0:02:58]}  e6 {[%clk 0:03:00]} 9. O-O {[%clk 0:02:58]}  Be7 {[%clk 0:02:59]} 10. Ne5 {[%clk 0:02:56]}  c5 {[%clk 0:02:57]} 11. Be3 {[%clk 0:02:29]}  cxd4 {[%clk 0:02:50]} 12. Bxd4 {[%clk 0:02:29]}  Nc6 {[%clk 0:02:40]} 13. Nxc6 {[%clk 0:02:28]}  Qxc6 {[%clk 0:02:41]} 14. Qe2 {[%clk 0:02:10]}  O-O {[%clk 0:02:40]} 15. f4 {[%clk 0:01:55]}  b5 {[%clk 0:02:36]} 16. Bd3 {[%clk 0:01:52]}  Bc5 {[%clk 0:02:20]} 17. Qf2 {[%clk 0:01:33]}  Bxd4 {[%clk 0:02:20]} 18. Qxd4 {[%clk 0:01:33]}  Bb7 {[%clk 0:02:20]} 19. Rf2 {[%clk 0:01:28]}  Rfd8 {[%clk 0:02:10]} 20. Qb4 {[%clk 0:01:23]}  Ng4 {[%clk 0:02:01]} 21. Re2 {[%clk 0:01:14]}  Qb6+ {[%clk 0:01:58]} 22. Kh1 {[%clk 0:01:00]}  Nf2+ {[%clk 0:01:56]} 23. Rxf2 {[%clk 0:01:00]}  Qxf2 {[%clk 0:01:57]} 24. Ne4 {[%clk 0:01:01]}  Bxe4 {[%clk 0:01:25]} 25. Qxe4 {[%clk 0:00:58]}  g6 {[%clk 0:01:21]} 26. Rf1 {[%clk 0:00:55]}  Qd4 {[%clk 0:01:21]} 27. Qf3 {[%clk 0:00:51]}  Rac8 {[%clk 0:01:21]} 28. h4 {[%clk 0:00:49]}  Rc3 {[%clk 0:01:14]} 29. h5 {[%clk 0:00:48]}  Rxd3 {[%clk 0:01:11]} 30. cxd3 {[%clk 0:00:47]}  Qxd3 {[%clk 0:01:12]} 31. Qf2 {[%clk 0:00:46]}  Qf5 {[%clk 0:00:57]} 32. hxg6 {[%clk 0:00:41]}  hxg6 {[%clk 0:00:55]} 33. Qb6 {[%clk 0:00:31]}  Rd2 {[%clk 0:00:45]} 34. Qe3 {[%clk 0:00:19]}  Qd5 {[%clk 0:00:37]} 35. Qg3 {[%clk 0:00:16]}  Kg7 {[%clk 0:00:21]} 36. Kg1 {[%clk 0:00:12]}  Qd4+ {[%clk 0:00:20]} 37. Kh2 {[%clk 0:00:12]}  Rd3 {[%clk 0:00:20]} 38. Qg5 {[%clk 0:00:11]}  Qf6 {[%clk 0:00:20]} 39. Qg4 {[%clk 0:00:11]}  Qf5 {[%clk 0:00:19]} 40. Qe2 {[%clk 0:00:10]}  Qh5+ {[%clk 0:00:16]} 41. Qxh5 {[%clk 0:00:08]}  gxh5 {[%clk 0:00:17]} 42. g3 {[%clk 0:00:08]}  Rd2+ {[%clk 0:00:17]} 43. Kh3 {[%clk 0:00:08]}  Rxa2 {[%clk 0:00:17]} 44. Kh4 {[%clk 0:00:09]}  Kg6 {[%clk 0:00:17]} 45. Rh1 {[%clk 0:00:08]}  b4 {[%clk 0:00:16]} 46. g4 {[%clk 0:00:07]}  hxg4 {[%clk 0:00:16]} 47. Kxg4 {[%clk 0:00:08]}  b3 {[%clk 0:00:15]} 48. Rg1 {[%clk 0:00:07]}  b2 {[%clk 0:00:14]} 49. Kf3+ {[%clk 0:00:08]}  Kf6 {[%clk 0:00:14]} 50. Rb1 {[%clk 0:00:08]}  a5 {[%clk 0:00:15]} 0-1


[Site "https://www.chess.com"]

[Event "Titled Tuesday Blitz May 2 Late 2023"]
[White "Todorovic, Bojan"]
[Black "Kostiukov, Alexandr"]
[WhiteFideId "917087"]
[BlackFideId "14108100"]
[WhiteElo "2266"]
[BlackElo "2202"]
[Result "1-0"]
[Round "05"]
[TimeControl "180+2"]
[Date "2023.05.02"]
[WhiteClock "0:00:07"]
[BlackClock "0:00:09"]

1. d4 {[%clk 0:02:58]}  g6 {[%clk 0:02:55]} 2. c4 {[%clk 0:02:55]}  Bg7 {[%clk 0:02:56]} 3. Nf3 {[%clk 0:02:53]}  d6 {[%clk 0:02:56]} 4. Nc3 {[%clk 0:02:47]}  e5 {[%clk 0:02:56]} 5. g3 {[%clk 0:02:44]}  exd4 {[%clk 0:02:54]} 6. Nxd4 {[%clk 0:02:42]}  Nc6 {[%clk 0:02:55]} 7. Be3 {[%clk 0:02:39]}  Nge7 {[%clk 0:02:53]} 8. Bg2 {[%clk 0:02:33]}  O-O {[%clk 0:02:52]} 9. O-O {[%clk 0:02:32]}  Nf5 {[%clk 0:02:26]} 10. Nxf5 {[%clk 0:02:29]}  Bxf5 {[%clk 0:02:25]} 11. Qd2 {[%clk 0:02:27]}  Qd7 {[%clk 0:02:24]} 12. Bh6 {[%clk 0:02:21]}  Bxh6 {[%clk 0:02:01]} 13. Qxh6 {[%clk 0:02:13]}  Ne5 {[%clk 0:01:40]} 14. Nd5 {[%clk 0:02:06]}  f6 {[%clk 0:01:35]} 15. e4 {[%clk 0:01:57]}  Be6 {[%clk 0:01:31]} 16. b3 {[%clk 0:01:53]}  c6 {[%clk 0:01:16]} 17. Ne3 {[%clk 0:01:49]}  Qg7 {[%clk 0:00:59]} 18. Qxg7+ {[%clk 0:01:42]}  Kxg7 {[%clk 0:01:00]} 19. Rad1 {[%clk 0:01:35]}  Rad8 {[%clk 0:00:57]} 20. Rd2 {[%clk 0:01:29]}  Rd7 {[%clk 0:00:51]} 21. Rfd1 {[%clk 0:01:28]}  Rfd8 {[%clk 0:00:51]} 22. f4 {[%clk 0:01:22]}  Ng4 {[%clk 0:00:43]} 23. Nf1 {[%clk 0:01:13]}  f5 {[%clk 0:00:42]} 24. h3 {[%clk 0:01:03]}  Nf6 {[%clk 0:00:42]} 25. exf5 {[%clk 0:01:00]}  Bxf5 {[%clk 0:00:32]} 26. Ne3 {[%clk 0:01:00]}  Be4 {[%clk 0:00:30]} 27. g4 {[%clk 0:00:58]}  Bxg2 {[%clk 0:00:29]} 28. Kxg2 {[%clk 0:00:54]}  d5 {[%clk 0:00:19]} 29. cxd5 {[%clk 0:00:48]}  Nxd5 {[%clk 0:00:18]} 30. Nxd5 {[%clk 0:00:38]}  cxd5 {[%clk 0:00:19]} 31. Rd4 {[%clk 0:00:37]}  Kf6 {[%clk 0:00:19]} 32. R1d2 {[%clk 0:00:35]}  Ke6 {[%clk 0:00:19]} 33. Re2+ {[%clk 0:00:34]}  Kd6 {[%clk 0:00:19]} 34. Re5 {[%clk 0:00:32]}  Kc5 {[%clk 0:00:16]} 35. Rd1 {[%clk 0:00:26]}  Kb4 {[%clk 0:00:10]} 36. f5 {[%clk 0:00:25]}  gxf5 {[%clk 0:00:10]} 37. gxf5 {[%clk 0:00:24]}  d4 {[%clk 0:00:10]} 38. Rd3 {[%clk 0:00:20]}  Rd5 {[%clk 0:00:09]} 39. Rxd5 {[%clk 0:00:10]}  Rxd5 {[%clk 0:00:10]} 40. Kf3 {[%clk 0:00:08]}  Rxf5+ {[%clk 0:00:09]} 41. Ke4 {[%clk 0:00:07]} 1-0


[Site "https://www.chess.com"]

[Event "Titled Tuesday Blitz May 2 Late 2023"]
[White "Bueno, Alfeu Junior Varela"]
[Black "Gabdushev, Ruslan"]
[WhiteFideId "2108879"]
[BlackFideId "4137833"]
[WhiteElo "2175"]
[BlackElo "2233"]
[Result "0-1"]
[Round "05"]
[TimeControl "180+2"]
[Date "2023.05.02"]
[WhiteClock "0:00:10"]
[BlackClock "0:00:55"]

1. e4 {[%clk 0:03:00]}  Nc6 {[%clk 0:02:59]} 2. Nc3 {[%clk 0:03:00]}  e6 {[%clk 0:02:58]} 3. f4 {[%clk 0:02:52]}  d5 {[%clk 0:02:56]} 4. Bb5 {[%clk 0:02:50]}  Nf6 {[%clk 0:02:43]} 5. e5 {[%clk 0:02:49]}  Nd7 {[%clk 0:02:42]} 6. Nf3 {[%clk 0:02:48]}  a6 {[%clk 0:02:39]} 7. Bxc6 {[%clk 0:02:41]}  bxc6 {[%clk 0:02:39]} 8. O-O {[%clk 0:02:38]}  g6 {[%clk 0:02:38]} 9. d4 {[%clk 0:02:27]}  c5 {[%clk 0:02:36]} 10. Ne2 {[%clk 0:02:22]}  cxd4 {[%clk 0:02:34]} 11. Nexd4 {[%clk 0:02:21]}  c5 {[%clk 0:02:33]} 12. Nb3 {[%clk 0:02:18]}  Qb6 {[%clk 0:02:30]} 13. Kh1 {[%clk 0:02:17]}  a5 {[%clk 0:02:25]} 14. Re1 {[%clk 0:02:09]}  a4 {[%clk 0:02:23]} 15. Nbd2 {[%clk 0:02:08]}  Be7 {[%clk 0:02:18]} 16. c4 {[%clk 0:02:05]}  Bb7 {[%clk 0:02:17]} 17. Qc2 {[%clk 0:01:58]}  O-O {[%clk 0:02:04]} 18. Nf1 {[%clk 0:01:56]}  Nb8 {[%clk 0:01:54]} 19. f5 {[%clk 0:01:52]}  exf5 {[%clk 0:01:52]} 20. Bg5 {[%clk 0:01:39]}  Re8 {[%clk 0:01:45]} 21. Qd2 {[%clk 0:01:36]}  d4 {[%clk 0:01:40]} 22. Qf4 {[%clk 0:01:15]}  Nd7 {[%clk 0:01:26]} 23. N1d2 {[%clk 0:01:14]}  Nf8 {[%clk 0:01:25]} 24. Rab1 {[%clk 0:01:10]}  Ne6 {[%clk 0:01:23]} 25. Qh4 {[%clk 0:01:07]}  Bxg5 {[%clk 0:01:20]} 26. Nxg5 {[%clk 0:01:08]}  Nxg5 {[%clk 0:01:18]} 27. Qxg5 {[%clk 0:01:09]}  Qd8 {[%clk 0:01:15]} 28. Qh6 {[%clk 0:01:08]}  Ra6 {[%clk 0:01:12]} 29. Nf3 {[%clk 0:01:05]}  Bxf3 {[%clk 0:01:11]} 30. gxf3 {[%clk 0:01:05]}  Rae6 {[%clk 0:01:10]} 31. f4 {[%clk 0:01:00]}  Qa8+ {[%clk 0:01:08]} 32. Kg1 {[%clk 0:00:59]}  Qf3 {[%clk 0:01:06]} 33. Rbd1 {[%clk 0:00:34]}  f6 {[%clk 0:01:03]} 34. Rf1 {[%clk 0:00:11]}  Qg4+ {[%clk 0:01:02]} 35. Kh1 {[%clk 0:00:10]}  fxe5 {[%clk 0:01:01]} 36. fxe5 {[%clk 0:00:11]}  Qe4+ {[%clk 0:00:58]} 37. Kg1 {[%clk 0:00:10]}  Rxe5 {[%clk 0:00:57]} 38. Rf2 {[%clk 0:00:10]}  Qg4+ {[%clk 0:00:56]} 39. Kf1 {[%clk 0:00:10]}  Qxd1+ {[%clk 0:00:55]} 0-1


[Site "https://www.chess.com"]